Cogmind - Beta 13 @@@ ROGUE MODE // 2024.04.09 @ 21:13:09 Player: Andru7428 Result: Destroyed by CM-AU7(R) with Subdweller Laser Performance ------------- Evolutions (0) 0 Regions Visited (2) 400 Robots Destroyed (30) 150 Value Destroyed (824) 824 Prototype IDs (0) 0 Alien Tech Used (0) 0 Bonus (0) 0 TOTAL SCORE: 1374 Bonus ------- None Cogmind --------- Core Integrity 0/250 Matter 236/300 Energy 249/250 System Corruption 0% Temperature Cool (40) Movement Rolling (110) Ox2 Location -10/Subcaves Parts ------- > --- POWER (1) -------- Ion Engine > --- PROPULSION (2) --- Wheel Subdweller Monowheel > --- UTILITY (2) ------ Medium Storage Unit Core Shielding > --- WEAPON (2) ------- Subdweller Beam Cannon > --- INVENTORY (10) --- High-capacity Matter Pod (200) Structural Scanner Seismic Detector Core Shielding Assault Rifle Assault Rifle Assault Rifle Subdweller Machine Gun Hammer Peak State ------------ > --- POWER ------------ Ion Engine > --- PROPULSION ------- Wheel Subdweller Monowheel > --- UTILITY ---------- Medium Storage Unit Structural Scanner > --- WEAPON ----------- Subdweller Machine Gun Barrage Gun > --- INVENTORY -------- High-capacity Matter Pod Seismic Detector Core Shielding Core Shielding Subdweller Beam Cannon Assault Rifle Assault Rifle Assault Rifle Subdweller Machine Gun Hammer [Rating: 12] Favorites ----------- Power Light Ion Engine Engine Light Ion Engine Propulsion Light Treads Treads Light Treads Wheel Wheel Utility Medium Storage Unit Device Seismic Detector Storage Medium Storage Unit Protection Core Shielding Weapon Assault Rifle Energy Cannon Subdweller Beam Cannon Ballistic Gun Assault Rifle Impact Weapon Hammer Build | -11 -10 -10 ------- Run | Yrd Mat Sub Slots Evolved . | . . . Power . | . . . Propulsion . | . . . Utility . | . . . Weapon . | . . . Parts Attached 49 | 7 7 35 Power 2 | 1 . 1 Engine 2 | 1 . 1 Core . | . . . Reactor . | . . . Propulsion 8 | 2 3 3 Treads 4 | 2 2 . Leg . | . . . Wheel 4 | . 1 3 Hover . | . . . Flight . | . . . Utility 19 | 2 1 16 Device 9 | 1 . 8 Storage 2 | 1 1 . Processor . | . . . Hackware . | . . . Protection 8 | . . 8 Artifact . | . . . Weapon 20 | 2 3 15 Energy Gun . | . . . Energy Cannon 1 | . . 1 Ballistic Gun 18 | 2 3 13 Ballistic Cannon . | . . . Launcher . | . . . Special Weapon . | . . . Impact Weapon 1 | . . 1 Slashing Weapon . | . . . Piercing Weapon . | . . . Special Melee Weapon . | . . . Unidentified Prototypes . | . . . Parts Lost 8 | . 2 6 Power 1 | . . 1 Propulsion 3 | . 1 2 Utility . | . . . Weapon 4 | . 1 3 Highest Loss Streak 3 | . 1 3 To Critical Strikes . | . . . Average Slot Usage (%) 99 | . 99 99 Engine 14 | . 14 14 Treads 15 | . 26 10 Wheel 11 | . 1 17 Device 11 | . 14 10 Storage 14 | . 14 14 Protection 2 | . . 3 Ballistic Gun 24 | . 27 23 Impact Weapon 3 | . . 4 Naked Turns . | . . . Heaviest Build 27 | 13 18 27 Greatest Support 40 | 40 40 40 Greatest Overweight (x) 2 | . . 2 Average Overweight (x) . | . . 1 Largest Inventory Capacity 10 | 8 10 10 Average Capacity 9 | 7 8 10 Most Carried 10 | 4 10 10 Average Carried 8 | 2 8 9 Final Capacity 10 | 8 10 10 Final Carried 10 | 4 10 9 Class Distribution -------------------- 76% | Mutant 23% | Scavenger-Mutant Dominant Class ---------------- Mutant | -10/Materials Mutant | -10/Subcaves Resources | -11 -10 -10 ----------- Run | Yrd Mat Sub Matter Collected 1314 | 173 480 661 Remotely . | . . . Salvage Created 1020 | 21 467 532 Parts 72 | 6 30 36 Haulers Intercepted 2 | . 2 . Recyclers Shooed . | . . . Parts Field Recycled . | . . . Retrieved Matter . | . . . Parts Self-Destructed 7 | . . 7 Prevented . | . . . Kills | -11 -10 -10 ------- Run | Yrd Mat Sub Combat Hostiles Destroyed 26 | . 13 13 Melee 1 | . . 1 Guns 24 | . 13 11 Cannons 1 | . . 1 Classes Destroyed 6 | 1 3 2 Tunneler 2 | 2 . . Hauler 2 | . 2 . Swarmer 7 | . 6 1 Grunt 7 | . 7 . Sentry 1 | . . 1 Subdweller 11 | . . 11 Best Kill Streak 3 | 1 3 2 Combat Bots Only 3 | . 3 2 Max Kills in Single Turn 1 | 1 1 1 Gunslinging . | . . . Exploded . | . . . Melee 1 | . . 1 Uniques/NPCs Destroyed . | . . . Combat | -11 -10 -10 -------- Run | Yrd Mat Sub Hostile Shots Fired 152 | . 75 77 Missed 32 | . 13 19 Damage Taken 1763 | . 637 1126 Core 263 | . 67 196 Absorbed by Shields . | . . . Redirected to Shielding 40 | . . 40 Core Remaining (%) 100 | 100 . . Volleys Fired 97 | 5 43 49 Largest 2 | 2 2 2 Hottest 108 | 40 40 108 Shots Fired 189 | 10 86 93 Gun 186 | 10 86 90 Cannon 3 | . . 3 Launcher . | . . . Special . | . . . Kinetic 186 | 10 86 90 Thermal 3 | . . 3 Explosive . | . . . Electromagnetic . | . . . Robot Hit Streak 16 | 5 8 16 Robot Miss Streak 5 | 1 5 2 Penetration Max . | . . . Secondary Targets 3 | . 2 1 Max Gunslinging Chain 1 | . 1 1 Shots Hit Robots 132 | 7 51 74 Core Hits 51 | 2 23 26 Critical Kills . | . . . Critical Parts Destroyed . | . . . Critical Strikes 2 | . . 2 Destroy 2 | . . 2 Melee Attacks 54 | . . 54 Impact 54 | . . 54 Slashing . | . . . Piercing . | . . . Sneak Attacks 1 | . . 1 Combat Hostiles 1 | . . 1 Follow-up Attacks . | . . . Damage Inflicted 2129 | 84 691 1354 Guns 1882 | 84 691 1107 Cannons 56 | . . 56 Explosions . | . . . Melee 191 | . . 191 Ramming . | . . . Kinetic 1882 | 84 691 1107 Thermal 56 | . . 56 Explosive . | . . . Electromagnetic . | . . . Impact 191 | . . 191 Slashing . | . . . Piercing . | . . . Highest Corruption . | . . . Average Corruption . | . . . Corruption Purged . | . . . Corruption Blocked . | . . . Overload Shots . | . . . Overflow Damage . | . . . Projectiles . | . . . Explosions . | . . . Melee . | . . . Knockbacks 1 | . . 1 Impact 1 | . . 1 Kinetic . | . . . Secondary . | . . . Self-Inflicted Damage . | . . . Shots . | . . . Rammed . | . . . Targets Rammed . | . . . Kicked . | . . . Crushed . | . . . Highest Temperature 34 | . 22 34 Average Temperature 11 | . 7 20 Received Heat Transfer 357 | . 246 111 Siege Activations . | . . . Robots Corrupted . | . . . Combat Hostiles . | . . . Parts Fried . | . . . Impact Corruptions . | . . . Robots Melted . | . . . Combat Hostiles . | . . . Parts Melted . | . . . Heat Transferred 74 | . . 74 Parts Sabotaged . | . . . Parts Stolen . | . . . Parts Stripped . | . . . Power Chain Reactions . | . . . Alert | -11 -10 -10 ------- Run | Yrd Mat Sub Peak Influence 250 | 10 250 . Initial 6 | . 6 . Average 76 | 4 84 . Maximum Alert Level 1 | . 1 . Low Security (%) 91 | 100 90 . Level 1 8 | . 9 . Level 2 . | . . . Level 3 . | . . . Level 4 . | . . . Level 5 . | . . . High Security . | . . . Max Security . | . . . Squads Dispatched 2 | . 2 . Investigation . | . . . Extermination . | . . . Reinforcement 2 | . 2 . Assault . | . . . Garrison . | . . . Intercept . | . . . Searches Triggered . | . . . Construction Impeded . | . . . Haulers Reinforced . | . . . Active Scanning Responses . | . . . Cargo Convoy Interrupts . | . . . Stealth | -11 -10 -10 --------- Run | Yrd Mat Sub Distress Signals 3 | . 3 . Communications Jammed . | . . . Distress Signals . | . . . Times Spotted 41 | . 25 16 Peak Tracking Total 3 | . 3 2 Tactical Retreats 1 | . . 1 Traps | -11 -10 -10 ------- Run | Yrd Mat Sub Traps Triggered . | . . . Indirectly . | . . . Trap Hack Attempts . | . . . Triggered . | . . . Disarmed . | . . . Reprogrammed . | . . . Reused . | . . . Traps Extracted . | . . . Installed . | . . . Triggered . | . . . Machines | -11 -10 -10 ---------- Run | Yrd Mat Sub Machines Disabled . | . . . Max in Single Turn . | . . . Machines Repaired . | . . . Machines Dismantled . | . . . Machines Sabotaged . | . . . Overloaded Fab Kills . | . . . Hacking | -11 -10 -10 --------- Run | Yrd Mat Sub Machines Accessed 7 | . 6 1 Terminals 6 | . 6 . Fabricators . | . . . Repair Stations . | . . . Recycling Units . | . . . Scanalyzers . | . . . Garrison Access . | . . . Total Hacks 17 | . 16 1 Successful 10 | . 9 1 Failed 7 | . 7 . Catastrophic 2 | . 2 . Database Lockouts . | . . . Manual 9 | . 9 . Terminals 16 | . 16 . Fabricators . | . . . Repair Stations . | . . . Recycling Units . | . . . Scanalyzers . | . . . Garrison Access . | . . . Terminal Hacks 6 | . 5 1 Record 1 | . . 1 Robot Analysis 1 | . 1 . Terminal Index 1 | . 1 . Locate Traps 1 | . 1 . Registered Components 1 | . 1 . Zone Layout 1 | . 1 . Fabricator Hacks . | . . . Repair Station Hacks . | . . . Recycling Unit Hacks . | . . . Scanalyzer . | . . . Garrison Access Hacks . | . . . Unauthorized Hacks 4 | . 4 . Terminals 4 | . 4 . Botnet 4 | . 4 . Fabricators . | . . . Repair Stations . | . . . Recycling Units . | . . . Scanalyzers . | . . . Garrison Access . | . . . Data Cores Recovered . | . . . Used . | . . . Hacking Detections 6 | . 6 . Full Trace Events 1 | . 1 . Feedback Events . | . . . Feedback Blocked . | . . . Robot Schematics Acquired . | . . . Robots Built . | . . . Authchips . | . . . Time . | . . . Total Robot Build Rating . | . . . Part Schematics Acquired . | . . . Parts Built . | . . . Authchips . | . . . Time . | . . . Total Part Build Rating . | . . . Parts Repaired . | . . . Time . | . . . Parts Recycled . | . . . Recycled Matter . | . . . Retrieved Matter . | . . . Retrieved Components . | . . . Parts Scanalyzed . | . . . Part Schematics Acquired . | . . . Parts Damaged . | . . . Bothacking | -11 -10 -10 ------------ Run | Yrd Mat Sub Used RIF Installer . | . . . Robots Hacked . | . . . Non-combat . | . . . Combat . | . . . Robot Hacks Applied . | . . . Relay Couplers Released . | . . . Fabnet Peak Effective % . | . . . Robots Rewired . | . . . Allies Hacked . | . . . Hacks Repelled . | . . . Allies | -11 -10 -10 -------- Run | Yrd Mat Sub Total Allies . | . . . Largest Group . | . . . Highest-Rated Group . | . . . Highest-Rated Ally . | . . . Total Orders . | . . . Ally Attacks . | . . . Total Damage . | . . . Kills . | . . . Allies Corrupted . | . . . Allies Melted . | . . . Intel | -11 -10 -10 ------- Run | Yrd Mat Sub Robot Analysis Total 1 | . 1 . Derelict Logs Recovered 3 | . . 3 Drone Launches . | . . . Drone Recoveries . | . . . Exploration | -11 -10 -10 ------------- Run | Yrd Mat Sub Turns Passed 3817 | 154 1273 2390 Spaces Moved 2393 | 82 677 1634 Core 5 | 5 . . Treads 1221 | 77 677 467 Legs . | . . . Wheels 1167 | . . 1167 Hover . | . . . Flight . | . . . Fastest Speed 50 | 50 160 95 Average Speed 133 | 153 160 122 Slowest Speed 160 | 160 160 160 Overloaded Moves . | . . . Propulsion Burnouts . | . . . Robots Hopped . | . . . Cave-ins Triggered . | . . . Exploration Rate (%) 62 | 6 95 86 Regions Visited 2 Branch Regions 1 Pre-discovered Areas 1 | . . 1 Known Exits Taken . | . . . Unknown Exits Taken 2 | 1 1 . Scrap Searched 5 | . . 5 Spaces Dug 24 | . . 24 Terrain Destroyed 24 | . . 24 Melee 23 | . . 23 Projectile 1 | . . 1 AOE . | . . . Terrain Rammed . | . . . Walls Destroyed . | . . . Machines Disabled . | . . . Actions | -11 -10 -10 --------- Run | Yrd Mat Sub Total 2711 | 97 782 1832 Wait 94 | . 40 54 Move 2391 | 81 676 1634 Hop . | . . . Pick Up 16 | 4 10 2 Fast Attach 8 | 7 . 1 Attach 6 | . 2 4 Detach . | . . . Swap 35 | . 5 30 Drop 10 | . 6 4 Fire 97 | 5 43 49 Melee 54 | . . 54 Ram . | . . . Kick . | . . . Crush . | . . . Escape Stasis . | . . . Rewire . | . . . Trap . | . . . Miscellaneous . | . . . Route ------- -11/Scrapyard -10/Materials (discovered 5 exits: [*Mat x3] / [*Min] / *Sub) -10/Subcaves (discovered 2 exits: [*Mat x2]) History --------- Turn | Location | Event 5 | -11/Scrapyard | Discovered new exit (range 15) 155 | -11/Scrapyard | Entered Materials 308 | -10/Materials | Build established: Mutant 462 | -10/Materials | Discovered new exit (range 10) 735 | -10/Materials | Discovered new exit (range 18) 897 | -10/Materials | Discovered new exit (range 9) 1015 | -10/Materials | Discovered new exit (range 6) 1415 | -10/Materials | Discovered new exit (range 9) 1428 | -10/Materials | Entered Subcaves 1464 | -10/Subcaves | Shifting Twisted Machinery released Mak. Flight Unit 1467 | -10/Subcaves | Shifting Twisted Machinery released Sub. Power Source 1960 | -10/Subcaves | Build established: Scavenger-Mutant 2028 | -10/Subcaves | Core integrity fell below 50% 2148 | -10/Subcaves | Core integrity fell below 20% 2337 | -10/Subcaves | Learned Materials stockpile data 2346 | -10/Subcaves | Lost 3 parts (1p2n) 2373 | -10/Subcaves | Discovered new exit (range 5) 2707 | -10/Subcaves | A swath of the cavern ceiling suddenly collapsed 3018 | -10/Subcaves | Shifting Twisted Machinery released Sub. Power Source 3021 | -10/Subcaves | Shifting Twisted Machinery released Barrage Gun 3038 | -10/Subcaves | Visited Clippyterm 3053 | -10/Subcaves | Build established: Mutant 3089 | -10/Subcaves | Discovered new exit (range 10) 3402 | -10/Subcaves | Shifting Twisted Machinery released Mak. Flight Unit 3409 | -10/Subcaves | Shifting Twisted Machinery released Sub. Beam Cannon 3538 | -10/Subcaves | Learned location of Zion (-6) 3538 | -10/Subcaves | Met a Zionite searching for "candidates" 3559 | -10/Subcaves | Learned Materials trap positions 3818 | -10/Subcaves | Destroyed by CM-AU7(R) with Subdweller Laser Last Messages --------------- 03538_ GD-J78(z): "Hey you! It's really dangerous down here, I feel that you could die at any moment. For your health and safety might I suggest a trip to Zion?" World map updated: -6/Zion. 03559_ Acquired derelict log, extracted data. Data stored: Materials trap records. 03576_ S-10 Pest destroyed. 03579_ Acquired 13 matter. 03583_ Critical hit (Burn: +37). 03586_ Flight Unit fries itself beyond repair. 03589_ Y-45 Defender destroyed. 03592_ Lgt. Ion Engine fries itself beyond repair. 03594_ Acquired 50 matter. 03596_ Imp. Ion Engine fries itself beyond repair. 03796_ Sub. Machine Gun destroyed. 03810_ Y5-OYH(R) destroyed. 03816_ Barrage Gun destroyed. Map ----- +----------------------------------------------------+ | # ####### ##??#######??## ###?????????????? | | #### ##??###### ??### ###????????????? | | #### ##???????????# ## ###????????????? | | #### ##????????????##### ###???????????? | | ## #######?????????????#### ###???????????? | | ### #######?????????????### ##???????????? | | ### ## #####???????????????## ##???????????? | | #### ####???????????????## ##???????????? | | ##### ##???????????????## ##???????????? | | ##### ##???????????????## ###???????????? | | ## ## ##?????????????##### ##???????????? | | # ## ## ##??#######?? ####### ##???????????? | | ##### ################ # # ##???????????? | | ## ####### ###### ###???????????? | | ##### #### #### ###???????????? | | ## #### ##???????????? | | ## #### ##???????????? | | #### ### ##???????????? | | ######## ## ###???????????? | | ############### ###???????????? | | ######????##### ## ##????????????? | | ##???????????## #### ### #############???? | | ###????????######### #### ##############??? | | #################### !&#### ###??# | | ############ ###""R### ##??# | | ###### ### ##"""!@## ## ## ###?# | | ####### """= # ### #### ###?# | | ?###### "## #### ##### ##?# | | ?### ! " #### #### ##### ##?# | | ?## ] "#### ### ###?## ##?# | | ?## ## """""= """ ##### ?#######?## ###?# | | ?### #### """"" """ ###### #######??######## | | ?## ###### " """ ##?#####????????####### | | ?### ###### """"""" ???#####????????#### | | ?### #######" ##"""""" ##??# ##??????## | | ??## ########### ##?## ######## # | | #?## ########## ##?# ## ## # | | ##### ##??????# ] ###?# #### ## | | ####"" "######???? "?" ##### #??### ## | | """"" "#"# ##???????" ##?# #????# | | "" "" "???????# ###?# #????# | | """ ""??????# ##### # ##???# | | "" ### # # " ????## ##?# # ##### | | ############ ???? ##?# | | # #############?# ???# #??# | | #" ########"###???# ??# #### ### #### | | "" ########""##????# #?# ## ##### ### ##?? | | " ###"" ##????# ## ### ##### #?? | | " " "" ######## ###[ #??# #?? | | #### " ""### ### " ###### #?? | +----------------------------------------------------+ Best States ------------- Heat Dissipation 25 Energy Generation 10 Energy Capacity 250 Matter Stores 300 Matter Capacity 300 Sight Range 16 Terrain Scan Density 10 Core Shielding 20 Evasion (%) 41 Recoil Reduction 2 Item Schematics ----------------- None Robot Schematics ------------------ None Fabricated ------------ Nothing Alien Tech Used ----------------- None Achievements -------------- None Challenges ------------ None Game ------ Seed ShadeSeismicMatrix Manual? 0 Play Time 00:22:26 Cumulative 180.3 hours Start 2024.04.09 @ 20:51:45 End 2024.04.09 @ 21:13:09 Sessions 1 Manual Loads 0 Difficulty Rogue Special Mode None Game No. 140 Rogue 140 Adventurer 0 Explorer 0 Win Type - Total 3 Types 3/0/0/0/0/0/0/0/0 Lore% 61 Gallery% 70 Achievement% 60 Wizard Run 0 Options --------- Layout 1 ASCII 0 Keyboard 1 Movement Numpad Keybinds 0 Fullscreen 1 Font 24/Smallcaps Map View 50x35 Zoom Use 0% Tactical HUD 1 Map Filters NONE Filters NONE Steam 1 RUN: 9719cb92-e925-4885-ab37-dec2caf418b4